fUST/lending_fUST_20240529
["ID","MTS","AMOUNT","RATE_DAILY","PERIOD"]
[328158355,1716964249172,-500.0,0.00021917,2]
[328158356,1716964249182,-500.0,0.00021917,2]
[328158357,1716964249191,-500.0,0.00021917,2]
[328158358,1716964249200,-500.0,0.00021917,2]
[328158359,1716964249210,-500.0,0.00021917,2]
[328158360,1716964249219,-500.0,0.00021917,2]
[328158361,1716964249229,-362.17186712,0.00021917,2]
[328158362,1716964249238,-500.0,0.00021917,2]
[328158363,1716964249248,-500.0,0.00021917,2]
[328158364,1716964249257,-500.0,0.00021917,2]
[328158365,1716964249267,-500.0,0.00021917,2]
[328158366,1716964249275,-500.0,0.00021917,2]
[328158367,1716964249285,-429.23774876,0.00021917,2]
[328158368,1716964254262,273.37336231,9.9e-05,2]
[328158372,1716964262276,175.45145237,9.9e-05,2]
[328158373,1716964262298,97.92190994,9.9e-05,2]
[328158380,1716964271606,53.07981067,9.9e-05,2]
[328158381,1716964271627,220.29355164,9.9e-05,2]
[328158382,1716964279496,273.37336231,9.9e-05,2]
[328158384,1716964288299,273.37336231,9.9e-05,2]
[328158387,1716964296713,169.87700698,9.9e-05,2]
[328158388,1716964296735,103.49635533,9.9e-05,2]
[328158389,1716964304996,273.37336231,9.9e-05,2]
[328158390,1716964313024,273.37336231,9.9e-05,2]
[328158391,1716964321426,273.37336231,9.9e-05,2]
[328158392,1716964329439,74.31267394,9.9e-05,2]
[328158393,1716964329479,199.06068837,9.9e-05,2]
[328158394,1716964337618,273.37336231,9.9e-05,2]
[328158395,1716964346727,273.37336231,9.9e-05,2]
[328158396,1716964355550,273.37336231,9.9e-05,2]
[328158397,1716964363480,273.37336231,9.9e-05,2]
[328158398,1716964372293,273.37336231,9.9e-05,2]
[328158399,1716964380309,273.37336231,9.9e-05,2]
[328158400,1716964388487,273.37336231,9.9e-05,2]
[328158401,1716964396641,273.37336231,9.9e-05,2]
[328158402,1716964404798,273.37336231,9.9e-05,2]
[328158403,1716964412980,273.37336231,9.9e-05,2]
[328158404,1716964421104,273.37336231,9.9e-05,2]
[328158405,1716964429168,273.37336231,9.9e-05,2]
[328158406,1716964437895,273.37336231,9.9e-05,2]
[328158407,1716964445831,273.37336231,9.9e-05,2]
[328158408,1716964453909,273.37336231,9.9e-05,2]
[328158409,1716964461869,273.37336231,9.9e-05,2]
[328158410,1716964470338,273.37336231,9.9e-05,2]
[328158412,1716964478215,273.37336231,9.9e-05,2]
[328158413,1716964487540,273.37336231,9.9e-05,2]
[328158414,1716964495761,273.37336231,9.9e-05,2]
[328158415,1716964505070,273.37336231,9.9e-05,2]
[328158416,1716964513005,273.37336231,9.9e-05,2]
[328158417,1716964522265,273.37336231,9.9e-05,2]
[328158418,1716964530184,273.37336231,9.9e-05,2]
[328158419,1716964538403,273.37336231,9.9e-05,2]
[328158420,1716964546885,273.37336231,9.9e-05,2]
[328158422,1716964555122,273.37336231,9.9e-05,2]
[328158426,1716964563020,273.37336231,9.9e-05,2]
[328158431,1716964571233,273.37336231,9.9e-05,2]
[328158432,1716964579207,273.37336231,9.9e-05,2]
[328158433,1716964587278,273.37336231,9.9e-05,2]
[328158437,1716964595947,273.37336231,9.9e-05,2]
[328158438,1716964604953,273.37336231,9.9e-05,2]
[328158439,1716964613415,273.37336231,9.9e-05,2]
[328158440,1716964621621,273.37336231,9.9e-05,2]
[328158441,1716964629479,273.37336231,9.9e-05,2]
[328158442,1716964638282,273.37336231,9.9e-05,2]
[328158443,1716964646703,273.37336231,9.9e-05,2]
[328158444,1716964655449,273.37336231,9.9e-05,2]
[328158445,1716964663317,273.37336231,9.9e-05,2]
[328158446,1716964671493,273.37336231,9.9e-05,2]
[328158447,1716964679609,273.37336231,9.9e-05,2]
[328158448,1716964688918,273.37336231,9.9e-05,2]
[328158449,1716964697487,273.37336231,9.9e-05,2]
[328158450,1716964706178,273.37336231,9.9e-05,2]
[328158451,1716964714113,273.37336231,9.9e-05,2]
[328158452,1716964722811,273.37336231,9.9e-05,2]
[328158453,1716964730809,273.37336231,9.9e-05,2]
[328158454,1716964739543,273.37336231,9.9e-05,2]
[328158455,1716964748203,273.37336231,9.9e-05,2]
[328158456,1716964756604,273.37336231,9.9e-05,2]
[328158457,1716964764511,273.37336231,9.9e-05,2]
[328158458,1716964772787,273.37336231,9.9e-05,2]
[328158459,1716964780699,273.37336231,9.9e-05,2]
[328158460,1716964789937,273.37336231,9.9e-05,2]
[328158461,1716964797867,273.37336231,9.9e-05,2]
[328158462,1716964806062,273.37336231,9.9e-05,2]
[328158463,1716964814264,273.37336231,9.9e-05,2]
[328158464,1716964823730,273.37336231,9.9e-05,2]
[328158465,1716964831620,273.37336231,9.9e-05,2]
[328158466,1716964840294,273.37336231,9.9e-05,2]
[328158467,1716964848731,273.37336231,9.9e-05,2]
[328158468,1716964856959,273.37336231,9.9e-05,2]
[328158469,1716964865455,273.37336231,9.9e-05,2]
[328158470,1716964874954,273.37336231,9.9e-05,2]
[328158472,1716964883538,273.37336231,9.9e-05,2]
[328158473,1716964888661,223.1943553,9.9e-05,2]
[328158474,1716964890395,697.45159553,9.9e-05,2]
[328158475,1716964891411,157.29775726,9.9e-05,2]
[328158476,1716964891636,273.37336231,9.9e-05,2]
[328158477,1716964899542,273.37336231,9.9e-05,2]
[328158478,1716964901709,274.67438546,9.9e-05,2]
[328158479,1716964908417,273.37336231,9.9e-05,2]
[328158480,1716964916345,273.37336231,9.9e-05,2]
[328158481,1716964925434,273.37336231,9.9e-05,2]
[328158482,1716964933860,273.37336231,9.9e-05,2]
[328158483,1716964941684,273.37336231,9.9e-05,2]
[328158484,1716964950431,273.37336231,9.9e-05,2]
[328158485,1716964958583,273.37336231,9.9e-05,2]
[328158486,1716964966605,273.37336231,9.9e-05,2]
[328158487,1716964974481,273.37336231,9.9e-05,2]
[328158488,1716964983220,273.37336231,9.9e-05,2]
[328158489,1716964991096,273.37336231,9.9e-05,2]
[328158490,1716964999581,273.37336231,9.9e-05,2]
[328158491,1716965007998,273.37336231,9.9e-05,2]
[328158492,1716965016945,273.37336231,9.9e-05,2]
[328158493,1716965024908,273.37336231,9.9e-05,2]
[328158494,1716965033702,273.37336231,9.9e-05,2]
[328158495,1716965041522,273.37336231,9.9e-05,2]
[328158496,1716965050339,273.37336231,9.9e-05,2]
[328158497,1716965058332,273.37336231,9.9e-05,2]
[328158498,1716965066501,273.37336231,9.9e-05,2]
[328158499,1716965074966,273.37336231,9.9e-05,2]
[328158500,1716965083203,273.37336231,9.9e-05,2]
[328158501,1716965091644,273.37336231,9.9e-05,2]
[328158502,1716965100548,273.37336231,9.9e-05,2]
[328158503,1716965104672,-180.76947916,0.00019164,2]
[328158504,1716965104696,-168.1625321,0.00020413,2]
[328158505,1716965104727,-159.95109332,0.00020813,2]
[328158506,1716965104753,-226.2,0.00020857,3]
[328158507,1716965104778,-154.95351395,0.0002091,2]
[328158508,1716965104802,-2997.47100967,0.0002091,2]
[328158509,1716965104831,-155.0,0.0002091,2]
[328158510,1716965104857,-773.13648214,0.0002091,2]
[328158511,1716965104881,-691.03459692,0.0002091,2]
[328158512,1716965104906,-841.92324592,0.0002091,2]
[328158513,1716965104930,-534.70759317,0.0002091,2]
[328158514,1716965104954,-554.0,0.0002091,2]
[328158515,1716965104977,-303.40308856,0.00020911,2]
[328158516,1716965105002,-278.13391792,0.00020911,2]
[328158517,1716965105026,-218.0449124,0.00020912,2]
[328158518,1716965105051,-34838.7758169,0.00020912,2]
[328158519,1716965105076,-156.61629964,0.00020913,2]
[328158520,1716965105102,-500.0,0.00020913,2]
[328158521,1716965105130,-500.0,0.00020913,2]
[328158522,1716965105158,-500.0,0.00020913,2]
[328158523,1716965105196,-342.80931146,0.00020913,2]
[328158524,1716965105222,-374.46138925,0.00020913,2]
[328158525,1716965105248,-500.0,0.00020913,2]
[328158526,1716965105276,-500.0,0.00020913,2]
[328158527,1716965105304,-500.0,0.00020913,2]
[328158528,1716965105333,-500.0,0.00020913,2]
[328158529,1716965105360,-500.0,0.00020913,2]
[328158530,1716965105388,-500.0,0.00020913,2]
[328158531,1716965105416,-500.0,0.00020913,2]
[328158532,1716965105443,-500.0,0.00020913,2]
[328158533,1716965105469,-500.0,0.00020913,2]
[328158534,1716965105496,-500.0,0.00020913,2]
[328158535,1716965105524,-500.0,0.00020913,2]
[328158536,1716965105550,-500.0,0.00020913,2]
[328158537,1716965105580,-500.0,0.00020913,2]
[328158538,1716965105607,-434.62892519,0.00020913,2]
[328158539,1716965105634,-500.0,0.00020913,2]
[328158540,1716965105661,-200.0,0.00020913,2]
[328158541,1716965105685,-195.03313885,0.00020913,2]
[328158542,1716965105710,-328.610998,0.00020913,2]
[328158543,1716965105734,-461.34904634,0.00021,2]
[328158544,1716965105761,-3983.08440167,0.00021,2]
[328158545,1716965105785,-151.0,0.00021426,3]
[328158546,1716965105812,-226.2,0.00021426,3]
[328158547,1716965105838,-159.95109328,0.0002176,2]
[328158548,1716965105863,-500.0,0.00021917,2]
[328158549,1716965105886,-500.0,0.00021917,2]
[328158550,1716965105912,-526.58908509,0.00021917,2]
[328158551,1716965105936,-500.0,0.00021917,2]
[328158552,1716965105959,-500.0,0.00021917,2]
[328158553,1716965105983,-426.12104313,0.00021917,2]
[328158554,1716965106008,-500.0,0.00021917,2]
[328158555,1716965106034,-512.56552064,0.00021917,2]
[328158556,1716965106059,-508.67087428,0.00021917,2]
[328158557,1716965106084,-627.43303171,0.00021917,2]
[328158558,1716965106107,-500.0,0.00021917,2]
[328158559,1716965106139,-500.0,0.00021917,2]
[328158560,1716965106171,-186.97299233,0.00021917,2]
[328158561,1716965106206,-500.0,0.00021917,2]
[328158562,1716965106232,-500.0,0.00021917,2]
[328158563,1716965106262,-500.0,0.00021917,2]
[328158564,1716965106289,-500.0,0.00021917,2]
[328158565,1716965106321,-500.0,0.00021917,2]
[328158566,1716965106348,-500.0,0.00021917,2]
[328158567,1716965106375,-500.0,0.00021917,2]
[328158568,1716965106403,-583.24,0.00021917,2]
[328158569,1716965106433,-500.0,0.00021917,2]
[328158570,1716965106461,-500.0,0.00021917,2]
[328158571,1716965106488,-500.0,0.00021917,2]
[328158572,1716965106514,-500.0,0.00021917,2]
[328158573,1716965106542,-500.0,0.00021917,2]
[328158574,1716965106572,-500.0,0.00021917,2]
[328158575,1716965106599,-515.86,0.00021917,2]
[328158576,1716965106625,-500.0,0.00021917,2]
[328158577,1716965106654,-500.0,0.00021917,2]
[328158578,1716965106680,-500.0,0.00021917,2]
[328158579,1716965106706,-500.0,0.00021917,2]
[328158580,1716965106735,-500.0,0.00021917,2]
[328158581,1716965106765,-676.75,0.00021917,2]
[328158582,1716965106796,-500.0,0.00021917,2]
[328158583,1716965106828,-500.0,0.00021917,2]
[328158584,1716965106857,-500.0,0.00021917,2]
[328158585,1716965106887,-500.0,0.00021917,2]
[328158586,1716965106919,-1062.65,0.00021917,2]
[328158587,1716965106944,-166.666666,0.00021918,2]
[328158588,1716965106969,-946.0912364,0.00021918,2]
[328158589,1716965106994,-151.0,0.00021994,3]
[328158590,1716965107025,-226.2,0.00021994,3]
[328158591,1716965107052,-362.0,0.00022,2]
[328158592,1716965107081,-500.0,0.0002219,2]
[328158593,1716965107106,-500.0,0.00022191,2]
[328158594,1716965107131,-500.0,0.00022191,2]
[328158595,1716965107158,-150.00281572,0.00022191,2]
[328158596,1716965107185,-500.0,0.00022191,2]
[328158597,1716965107211,-423.57849474,0.00022191,2]
[328158598,1716965107236,-500.0,0.00022191,2]
[328158599,1716965107262,-500.0,0.00022191,2]
[328158600,1716965107286,-583.24,0.00022191,2]
[328158601,1716965107313,-500.0,0.00022191,2]
[328158602,1716965107340,-500.0,0.00022191,2]
[328158603,1716965107367,-500.0,0.00022191,2]
[328158604,1716965107393,-500.0,0.00022191,2]
[328158605,1716965107420,-500.0,0.00022191,2]
[328158606,1716965107447,-515.86,0.00022191,2]
[328158607,1716965107473,-500.0,0.00022191,2]
[328158608,1716965107502,-500.0,0.00022191,2]
[328158609,1716965107529,-500.0,0.00022191,2]
[328158610,1716965107555,-676.75,0.00022191,2]
[328158611,1716965107582,-500.0,0.00022191,2]
[328158612,1716965107608,-500.0,0.00022191,2]
[328158613,1716965107635,-500.0,0.00022191,2]
[328158614,1716965107663,-1062.65,0.00022191,2]
[328158615,1716965107688,-362.0,0.00022192,2]
[328158616,1716965107715,-166.666666,0.00022431,2]
[328158617,1716965107742,-500.0,0.00022465,2]
[328158618,1716965107767,-506.22855493,0.00022465,2]
[328158619,1716965107794,-500.0,0.00022465,2]
[328158620,1716965107824,-500.0,0.00022465,2]
[328158621,1716965108016,-500.0,0.00022465,2]
[328158622,1716965108045,-583.24,0.00022465,2]
[328158623,1716965108071,-500.0,0.00022465,2]
[328158624,1716965108098,-500.0,0.00022465,2]
[328158625,1716965108123,-500.0,0.00022465,2]
[328158626,1716965108147,-500.0,0.00022465,2]
[328158627,1716965108172,-500.0,0.00022465,2]
[328158628,1716965108196,-515.86,0.00022465,2]
[328158629,1716965108220,-500.0,0.00022465,2]
[328158630,1716965108243,-500.0,0.00022465,2]
[328158631,1716965108267,-500.0,0.00022465,2]
[328158632,1716965108291,-676.75,0.00022465,2]
[328158633,1716965108315,-500.0,0.00022465,2]
[328158634,1716965108340,-500.0,0.00022465,2]
[328158635,1716965108366,-511.08615245,0.00022465,2]
[328158636,1716965108392,-1062.65,0.00022465,2]
[328158637,1716965108420,-151.0,0.00022563,3]
[328158638,1716965108447,-226.2,0.00022563,3]
[328158639,1716965108470,-159.95109328,0.00022707,2]
[328158640,1716965108495,-500.0,0.00022739,2]
[328158641,1716965108520,-500.0,0.00022739,2]
[328158642,1716965108545,-493.58583515,0.00022739,2]
[328158643,1716965108570,-500.0,0.00022739,2]
[328158644,1716965108594,-583.24,0.00022739,2]
[328158645,1716965108620,-500.0,0.00022739,2]
[328158646,1716965108644,-500.0,0.00022739,2]
[328158647,1716965108667,-500.0,0.00022739,2]
[328158648,1716965108692,-500.0,0.00022739,2]
[328158649,1716965108716,-500.0,0.00022739,2]
[328158650,1716965108741,-515.86,0.00022739,2]
[328158651,1716965108764,-500.0,0.00022739,2]
[328158652,1716965108788,-500.0,0.00022739,2]
[328158653,1716965108814,-500.0,0.00022739,2]
[328158654,1716965108839,-676.75,0.00022739,2]
[328158655,1716965108862,-2524.546596,0.00022739,2]
[328158656,1716965108885,-2524.546596,0.00022739,2]
[328158657,1716965108911,-500.0,0.00022739,2]
[328158658,1716965108934,-151.0,0.00022739,2]
[328158659,1716965108957,-500.0,0.00022739,2]
[328158660,1716965108981,-1062.65,0.00022739,2]
[328158661,1716965109005,-166.666666,0.00022944,2]
[328158662,1716965109030,-355.39761767,0.00022999,2]
[328158663,1716965109054,-4699.30029575,0.00023,2]
[328158664,1716965109078,-154.87609912,0.00023,2]
[328158665,1716965109102,-2524.546596,0.00023,2]
[328158666,1716965109126,-2524.546596,0.00023,2]
[328158667,1716965109149,-22874.93521161,0.00023,2]
[328158668,1716965109178,-2524.546596,0.00023012,2]
[328158669,1716965109203,-2524.546596,0.00023012,2]
[328158670,1716965109227,-2168.90697685,0.00023013,7]
[328158671,1716965109251,-500.0,0.00023013,2]
[328158672,1716965109280,-605.12489611,0.00023013,2]
[328158673,1716965109304,-500.0,0.00023013,2]
[328158674,1716965109329,-583.24,0.00023013,2]
[328158675,1716965109354,-500.0,0.00023013,2]
[328158676,1716965109379,-500.0,0.00023013,2]
[328158677,1716965109402,-500.0,0.00023013,2]
[328158678,1716965109426,-500.0,0.00023013,2]
[328158679,1716965109450,-500.0,0.00023013,2]
[328158680,1716965109475,-515.86,0.00023013,2]
[328158681,1716965109498,-588.29696723,0.00023013,2]
[328158682,1716965109522,-500.0,0.00023013,2]
[328158683,1716965109547,-500.0,0.00023013,2]
[328158684,1716965109572,-676.75,0.00023013,2]
[328158685,1716965109598,-500.0,0.00023013,2]
[328158686,1716965109622,-500.0,0.00023013,2]
[328158687,1716965109647,-1062.65,0.00023013,2]
[328158688,1716965109669,-362.0,0.00023014,2]
[328158689,1716965109693,-151.0,0.00023131,5]
[328158690,1716965109717,-226.2,0.00023131,5]
[328158691,1716965109741,-2524.546596,0.00023139,2]
[328158692,1716965109766,-2524.546596,0.00023139,2]
[328158693,1716965109790,-158.7061959,0.00023286,2]
[328158694,1716965109817,-273.79758917,0.00023287,2]
[328158695,1716965109843,-366.76998947,0.00023287,2]
[328158696,1716965109867,-583.24,0.00023287,2]
[328158697,1716965109893,-500.0,0.00023287,2]
[328158698,1716965109922,-562.30170513,0.00023287,2]
[328158699,1716965109948,-500.0,0.00023287,2]
[328158700,1716965109974,-169.9,0.00023287,2]
[328158701,1716965110001,-500.0,0.00023287,2]
[328158702,1716965110027,-515.86,0.00023287,2]
[328158703,1716965110051,-500.0,0.00023287,2]
[328158704,1716965110077,-500.0,0.00023287,2]
[328158705,1716965110101,-676.75,0.00023287,2]
[328158706,1716965110126,-500.0,0.00023287,2]
[328158707,1716965110151,-500.0,0.00023287,2]
[328158708,1716965110176,-1062.65,0.00023287,2]
[328158709,1716965110200,-166.666666,0.00023456,2]
[328158710,1716965110224,-583.24,0.00023561,2]
[328158711,1716965110249,-500.0,0.00023561,2]
[328158712,1716965110273,-500.0,0.00023561,2]
[328158713,1716965110299,-500.0,0.00023561,2]
[328158714,1716965110323,-515.86,0.00023561,2]
[328158715,1716965110349,-500.0,0.00023561,2]
[328158716,1716965110375,-482.40525702,0.00023561,2]
[328158717,1716965110400,-676.75,0.00023561,2]
[328158718,1716965110423,-2524.546596,0.00023561,2]
[328158719,1716965110447,-2524.546596,0.00023561,2]
[328158720,1716965110471,-520.00743171,0.00023561,2]
[328158721,1716965110500,-500.0,0.00023561,2]
[328158722,1716965110634,-1062.65,0.00023561,2]
[328158723,1716965110659,-159.95109328,0.00023653,2]
[328158724,1716965110683,-151.0,0.000237,5]
[328158725,1716965110708,-226.2,0.000237,5]
[328158726,1716965110735,-583.24,0.00023835,2]
[328158727,1716965110760,-500.0,0.00023835,2]
[328158728,1716965110784,-500.0,0.00023835,2]
[328158729,1716965110812,-495.20062542,0.00023835,2]
[328158730,1716965110841,-515.86,0.00023835,2]
[328158731,1716965110867,-462.66814967,0.00023835,2]
[328158732,1716965110894,-676.75,0.00023835,2]
[328158733,1716965110919,-500.0,0.00023835,2]
[328158734,1716965110944,-1062.65,0.00023835,2]
[328158735,1716965110969,-166.666666,0.00023969,2]
[328158736,1716965110993,-583.24,0.00024109,2]
[328158737,1716965111018,-500.0,0.00024109,2]
[328158738,1716965111043,-500.0,0.00024109,2]
[328158739,1716965111070,-515.86,0.00024109,2]
[328158740,1716965111095,-676.75,0.00024109,2]
[328158741,1716965111122,-500.0,0.00024109,2]
[328158742,1716965111147,-1062.65,0.00024109,2]
[328158743,1716965111176,-180.76947916,0.00024164,2]
[328158744,1716965111200,-364.0,0.00024164,2]
[328158745,1716965111227,-151.0,0.00024268,5]
[328158746,1716965111252,-226.2,0.00024268,5]
[328158747,1716965111276,-583.24,0.00024383,2]
[328158748,1716965111301,-500.0,0.00024383,2]
[328158749,1716965111324,-364.5940478,0.00024383,2]
[328158750,1716965111350,-515.86,0.00024383,2]
[328158751,1716965111376,-676.75,0.00024383,2]
[328158752,1716965111399,-2524.546596,0.00024383,2]
[328158753,1716965111421,-2524.546596,0.00024383,2]
[328158754,1716965111446,-500.0,0.00024383,2]
[328158755,1716965111470,-1062.65,0.00024383,2]
[328158756,1716965111495,-750.0,0.00024384,2]
[328158757,1716965111519,-166.666666,0.00024482,2]
[328158758,1716965111543,-159.95109328,0.000246,2]
[328158759,1716965111567,-500.0,0.00024657,2]
[328158760,1716965111591,-500.0,0.00024657,2]
[328158761,1716965111613,-500.0,0.00024657,2]
[328158762,1716965111639,-500.0,0.00024657,2]
[328158763,1716965111661,-500.0,0.00024657,2]
[328158764,1716965111684,-500.0,0.00024657,2]
[328158765,1716965111707,-500.0,0.00024657,2]
[328158766,1716965111731,-523.63264618,0.00024657,2]
[328158767,1716965111755,-583.24,0.00024657,2]
[328158768,1716965111782,-500.0,0.00024657,2]
[328158769,1716965111810,-515.86,0.00024657,2]
[328158770,1716965111838,-676.75,0.00024657,2]
[328158771,1716965111862,-2524.546596,0.00024657,2]
[328158772,1716965111886,-2524.546596,0.00024657,2]
[328158773,1716965111913,-500.0,0.00024657,2]
[328158774,1716965111937,-1062.65,0.00024657,2]
[328158775,1716965111961,-200.0,0.00024658,15]
[328158776,1716965111984,-380.0,0.00024658,2]
[328158777,1716965112008,-633.51419468,0.00024698,2]
[328158778,1716965112032,-838.39888179,0.00024698,2]
[328158779,1716965112056,-190.9342862,0.00024699,2]
[328158780,1716965112080,-5600.0,0.000247,9]
[328158781,1716965112103,-2524.546596,0.000247,2]
[328158782,1716965112128,-2524.546596,0.000247,2]
[328158783,1716965112154,-151.0,0.00024837,5]
[328158784,1716965112178,-226.2,0.00024837,5]
[328158785,1716965112202,-591.0,0.000249,2]
[328158786,1716965112229,-5259.22298099,0.00024931,7]
[328158787,1716965112256,-583.24,0.00024931,4]
[328158788,1716965112282,-500.0,0.00024931,4]
[328158789,1716965112307,-515.86,0.00024931,4]
[328158790,1716965112334,-676.75,0.00024931,4]
[328158791,1716965112358,-500.0,0.00024931,4]
[328158792,1716965112382,-1062.65,0.00024931,4]
[328158793,1716965112407,-300.0,0.00025,2]
[328158794,1716965112433,-300.0,0.00025,2]
[328158795,1716965112456,-422.099999,0.00025,2]
[328158796,1716965112484,-924.43755138,0.00025,2]
[328158797,1716965112507,-150.0,0.00025,2]
[328158798,1716965112530,-1000.0,0.00025,2]
[328158799,1716965112670,5000.0,0.00025,2]
[328158800,1716965112700,223.51791126,0.00020911,2]
[328158801,1716965112745,500.0,0.00021917,2]
[328158802,1716965113649,500.0,0.00021917,2]
[328158803,1716965114158,500.0,0.00022191,2]
[328158804,1716965114440,500.0,0.00022465,2]
[328158805,1716965114895,500.0,0.00022739,2]
[328158806,1716965114995,200.0,0.00024658,15]
[328158807,1716965115534,500.0,0.00023013,2]
[328158808,1716965115821,500.0,0.00023287,2]
[328158809,1716965116132,500.0,0.00023561,2]
[328158810,1716965116400,500.0,0.00023835,2]
[328158811,1716965116588,5000.0,0.00025,2]
[328158812,1716965116772,500.0,0.00024109,2]
[328158813,1716965116947,500.0,0.00024383,2]
[328158814,1716965117230,500.0,0.00024657,2]
[328158815,1716965117494,500.0,0.00024931,4]
[328158816,1716965119315,500.0,0.00021917,2]
[328158817,1716965119588,318.4,0.00022191,2]
[328158818,1716965120219,154.99877363,9.9e-05,2]
[328158819,1716965120301,150.0,0.00025,2]
[328158820,1716965121847,-254.31134522,0.00025003,2]
[328158821,1716965121873,-500.0,0.00025205,4]
[328158822,1716965121902,-515.86,0.00025205,4]
[328158823,1716965121929,-676.75,0.00025205,4]
[328158824,1716965121953,-500.0,0.00025205,4]
[328158825,1716965121977,-1062.65,0.00025205,4]
[328158826,1716965122002,-500.0,0.00025205,4]
[328158827,1716965122026,-300.0,0.000253,2]
[328158828,1716965122051,-226.2,0.00025405,5]
[328158829,1716965122077,-500.0,0.00025479,4]
[328158830,1716965122106,-515.86,0.00025479,4]
[328158831,1716965122130,-676.75,0.00025479,4]
[328158832,1716965122154,-2524.546596,0.00025479,2]
[328158833,1716965122179,-2524.546596,0.00025479,2]
[328158834,1716965122204,-326.83767231,0.00025479,4]
[328158835,1716965122230,-1062.65,0.00025479,4]
[328158836,1716965122256,-500.0,0.00025479,4]
[328158837,1716965122282,-500.0,0.00025753,4]
[328158838,1716965122308,-515.86,0.00025753,4]
[328158839,1716965122334,-676.75,0.00025753,4]
[328158840,1716965122360,-1062.65,0.00025753,4]
[328158841,1716965122385,-500.0,0.00025753,4]
[328158842,1716965122410,-362.0,0.00025775,2]
[328158843,1716965122433,-151.0,0.00025973,5]
[328158844,1716965122457,-226.2,0.00025974,5]
[328158845,1716965122481,-1000.00000099,0.00026,2]
[328158846,1716965122503,-921.71859625,0.00026,2]
[328158847,1716965122528,-500.0,0.00026027,4]
[328158848,1716965122553,-515.86,0.00026027,4]
[328158849,1716965122577,-676.75,0.00026027,4]
[328158850,1716965122603,-1062.65,0.00026027,4]
[328158851,1716965122626,-500.0,0.00026027,4]
[328158852,1716965122649,-300.0,0.000263,2]
[328158853,1716965122675,-500.0,0.00026301,4]
[328158854,1716965122700,-515.86,0.00026301,4]
[328158855,1716965122725,-676.75,0.00026301,4]
[328158856,1716965122750,-1062.65,0.00026301,4]
[328158857,1716965122775,-500.0,0.00026301,4]
[328158858,1716965122800,-364.21419344,0.00026445,2]
[328158859,1716965122826,-658.17905555,0.00026448,2]
[328158860,1716965122850,-7851.563943,0.000265,2]
[328158861,1716965122874,-150.0,0.000265,2]
[328158862,1716965122902,-2524.546596,0.000265,2]
[328158863,1716965122926,-2524.546602,0.000265,2]
[328158864,1716965122950,-711.0,0.0002651,4]
[328158865,1716965122974,-658.17905555,0.00026516,2]
[328158866,1716965122998,-226.2,0.00026542,7]
[328158867,1716965123021,-151.0,0.00026542,7]
[328158868,1716965123046,-364.21419344,0.00026556,2]
[328158869,1716965123069,-658.17905555,0.00026573,2]
[328158870,1716965123095,-500.0,0.00026575,4]
[328158871,1716965123119,-515.86,0.00026575,4]
[328158872,1716965123150,-676.75,0.00026575,4]
[328158873,1716965123175,-1062.65,0.00026575,4]
[328158874,1716965123198,-500.0,0.00026575,4]
[328158875,1716965123222,-658.17905555,0.000266,2]
[328158876,1716965123245,-658.17905555,0.00026668,2]
[328158877,1716965123269,-364.21419344,0.00026692,2]
[328158878,1716965123292,-205.05678746,0.000267,3]
[328158879,1716965123315,-658.17905555,0.00026744,2]